fUSD/lending_fUSD_20260412
["ID","MTS","AMOUNT","RATE_DAILY","PERIOD"]
[420337199,1775993451869,-200.0,0.00027397,2]
[420337200,1775993451879,-200.0,0.00027397,2]
[420337201,1775993451888,-200.0,0.00027397,2]
[420337202,1775993451897,-200.0,0.00027397,2]
[420337203,1775993451910,-200.0,0.00027397,2]
[420337204,1775993451919,-200.0,0.00027397,2]
[420337205,1775993451928,-200.0,0.00027397,2]
[420337206,1775993451938,-200.0,0.00027397,2]
[420337207,1775993451949,-200.0,0.00027397,2]
[420337208,1775993451958,-200.0,0.00027397,2]
[420337209,1775993451967,-200.0,0.00027397,2]
[420337210,1775993451976,-200.0,0.00027397,2]
[420337211,1775993451985,-200.0,0.00027397,2]
[420337212,1775993451995,-200.0,0.00027397,2]
[420337213,1775993452004,-200.0,0.00027397,2]
[420337214,1775993452013,-200.0,0.00027397,2]
[420337215,1775993452022,-200.0,0.00027397,2]
[420337216,1775993452032,-200.0,0.00027397,2]
[420337217,1775993452042,-1997.401983,0.00027397,2]
[420337218,1775993452054,-1997.401983,0.00027397,2]
[420337219,1775993452064,-1997.401983,0.00027397,2]
[420337220,1775993452074,-1997.401983,0.00027397,2]
[420337221,1775993452083,-1997.401983,0.00027397,2]
[420337222,1775993452093,-1997.401983,0.00027397,2]
[420337223,1775993452104,-200.0,0.00027397,2]
[420337224,1775993452113,-200.0,0.00027397,2]
[420337225,1775993452123,-200.0,0.00027397,2]
[420337226,1775993452133,-200.0,0.00027397,2]
[420337227,1775993452143,-200.0,0.00027397,2]
[420337228,1775993452153,-200.0,0.00027397,2]
[420337229,1775993452162,-200.0,0.00027397,2]
[420337230,1775993452172,-200.0,0.00027397,2]
[420337231,1775993452183,-200.0,0.00027397,2]
[420337232,1775993452193,-209.249142,0.00027397,2]
[420337233,1775993452202,-1997.401983,0.00027397,2]
[420337234,1775993452213,-1997.401983,0.00027397,2]
[420337235,1775993452223,-1997.401983,0.00027397,2]
[420337236,1775993452232,-1997.401983,0.00027397,2]
[420337237,1775993452242,-1997.401983,0.00027397,2]
[420337238,1775993452252,-1997.401983,0.00027397,2]
[420337239,1775993452264,-1997.401983,0.00027397,2]
[420337240,1775993452274,-1997.401983,0.00027397,2]
[420337241,1775993452284,-1997.401983,0.00027397,2]
[420337242,1775993452298,-1997.401983,0.00027397,2]
[420337243,1775993452308,-1997.401983,0.00027397,2]
[420337244,1775993452320,-1997.401983,0.00027397,2]
[420337245,1775993452329,-1997.401983,0.00027397,2]
[420337246,1775993452339,-1997.401978,0.00027397,2]
[420337247,1775993452353,-1573.195736,0.00027397,2]
[420337248,1775993452367,-1573.195736,0.00027397,2]
[420337249,1775993452377,-1573.195736,0.00027397,2]
[420337250,1775993452390,-1573.195736,0.00027397,2]
[420337251,1775993452407,-1573.195736,0.00027397,2]
[420337252,1775993452416,-1573.195736,0.00027397,2]
[420337253,1775993452426,-1573.195736,0.00027397,2]
[420337254,1775993452448,-1573.195736,0.00027397,2]
[420337255,1775993452458,-1573.195736,0.00027397,2]
[420337256,1775993452467,-1573.195736,0.00027397,2]
[420337257,1775993452477,-1573.195736,0.00027397,2]
[420337258,1775993452496,-1573.195736,0.00027397,2]
[420337259,1775993452506,-1573.195736,0.00027397,2]
[420337260,1775993452518,-1573.195736,0.00027397,2]
[420337261,1775993452534,-1573.195736,0.00027397,2]
[420337262,1775993452543,-1573.195736,0.00027397,2]
[420337263,1775993452553,-1573.195736,0.00027397,2]
[420337264,1775993452564,-1573.195736,0.00027397,2]
[420337265,1775993452574,-1573.195736,0.00027397,2]
[420337266,1775993452584,-1573.195746,0.00027397,2]
[420337267,1775993452594,-169.222688,0.00027397,2]
[420337268,1775993452604,-151.0,0.00027397,2]
[420337269,1775993452614,-151.0,0.00027397,2]
[420337270,1775993452626,-151.0,0.00027397,2]
[420337271,1775993452637,-151.0,0.00027397,2]
[420337272,1775993452648,-151.0,0.00027397,2]
[420337273,1775993452657,-151.0,0.00027397,2]
[420337274,1775993452671,-151.0,0.00027397,2]
[420337275,1775993452682,-151.0,0.00027397,2]
[420337276,1775993452693,-151.0,0.00027397,2]
[420337277,1775993452703,-151.0,0.00027397,2]
[420337278,1775993452718,-151.0,0.00027397,2]
[420337279,1775993452728,-151.0,0.00027397,2]
[420337280,1775993452741,-151.0,0.00027397,2]
[420337281,1775993452753,-298.226485,0.00027397,2]
[420337282,1775993452768,-1000.0,0.00027397,20]
[420337283,1775993452778,-151.0,0.00027397,2]
[420337284,1775993452791,-294.226265,0.00027397,2]
[420337285,1775993452805,-151.0,0.00027397,2]
[420337286,1775993452816,-151.0,0.00027397,2]
[420337287,1775993452830,-163.32221,0.00027397,2]
[420337288,1775993452843,-4132.58,0.00027397,10]
[420337289,1775993452853,-500.0,0.00027397,5]
[420337290,1775993452867,-161.38110326,0.00027397,5]
[420337291,1775993452878,-180.92,0.000274,7]
[420337292,1775993452893,-310.02,0.000274,7]
[420337293,1775993452904,-924.99,0.000274,7]
[420337294,1775993452917,-16837.22,0.000274,2]
[420337295,1775993452935,-202.9978247,0.000275,2]
[420337296,1775993452947,-2000.0,0.000275,2]
[420337297,1775993452961,-175.26195521,0.00027628,18]
[420337298,1775993452978,-2000.0,0.00027671,2]
[420337299,1775993452998,-650.0,0.00027712,5]
[420337300,1775993453010,-275.0,0.00027796,2]
[420337301,1775993453022,-315.0,0.00027901,2]
[420337302,1775993453040,-2000.0,0.00027945,2]
[420337303,1775993453053,-156.59,0.00027946,2]
[420337304,1775993453066,-51303.42638403,0.00028,2]
[420337305,1775993453084,-160.0,0.00028,2]
[420337306,1775993453098,-3000.0,0.00028,50]
[420337307,1775993453110,-160.0,0.00028,7]
[420337308,1775993453137,-643.0,0.00028,2]
[420337309,1775993453147,-741.3912,0.000282,2]
[420337310,1775993453165,-2000.0,0.00028219,2]
[420337311,1775993453180,-750.0,0.0002826,5]
[420337312,1775993453194,-1378.27,0.00028276,2]
[420337313,1775993453226,-1152.16,0.00028479,30]
[420337314,1775993453239,-2000.0,0.00028493,2]
[420337315,1775993453257,-2958.0,0.000285,60]
[420337316,1775993453297,-16837.22,0.000285,2]
[420337317,1775993453331,-509.0,0.00028605,3]
[420337318,1775993453341,-1532.662016,0.00028637,2]
[420337319,1775993453356,-3376.3087434,0.00028658,2]
[420337320,1775993453380,-2000.0,0.00028737,2]
[420337321,1775993453389,-903.66,0.00028766,7]
[420337322,1775993453417,-488.97061159,0.00028767,2]
[420337323,1775993453429,-2000.0,0.00028767,2]
[420337324,1775993453451,-1000.0,0.00028767,5]
[420337325,1775993453473,-500.0,0.00028772,4]
[420337326,1775993453491,-500.0,0.00028772,4]
[420337327,1775993453502,-500.0,0.00028772,4]
[420337328,1775993453517,-500.0,0.00028772,4]
[420337329,1775993453532,-500.0,0.00028772,4]
[420337330,1775993453542,-500.0,0.00028772,4]
[420337331,1775993453555,-500.0,0.00028772,4]
[420337332,1775993453571,-500.0,0.00028772,4]
[420337333,1775993453581,-500.0,0.00028772,4]
[420337334,1775993453594,-500.0,0.00028772,4]
[420337335,1775993453608,-397.37,0.00028772,4]
[420337336,1775993453622,-219.30870022,0.00028808,5]
[420337337,1775993453638,-2000.0,0.00028837,2]
[420337338,1775993453652,-500.0,0.00028844,2]
[420337339,1775993453663,-2000.0,0.00028937,2]
[420337340,1775993453689,-175.26195521,0.00028951,19]
[420337341,1775993453699,-152.0,0.00028988,3]
[420337342,1775993453710,-1756.72917482,0.00029,2]
[420337343,1775993453728,-506.8431557,0.00029,2]
[420337344,1775993453738,-630.07848404,0.00029,30]
[420337345,1775993453749,-2000.0,0.00029037,2]
[420337346,1775993453759,-2000.0,0.00029041,2]
[420337347,1775993453782,-502.58828437,0.0002913,5]
[420337348,1775993453792,-2000.0,0.00029137,2]
[420337349,1775993453814,-2000.0,0.00029237,2]
[420337350,1775993453833,-846.9877,0.000293,2]
[420337351,1775993453846,-2000.0,0.00029315,2]
[420337352,1775993453884,-2000.0,0.00029337,2]
[420337353,1775993453921,-2000.0,0.00029437,2]
[420337354,1775993453938,-4610.72410341,0.00029492,2]
[420337355,1775993453950,-2246.75,0.00029527,7]
[420337356,1775993453994,-563.61,0.00029527,7]
[420337357,1775993454004,-516.47,0.00029527,30]
[420337358,1775993454017,-155.54311712,0.0002953,2]
[420337359,1775993454062,-838.04,0.00029534,7]
[420337360,1775993454075,-1115.85,0.00029534,7]
[420337361,1775993454100,-150.0,0.00029534,2]
[420337362,1775993454126,-563.57,0.00029534,14]
[420337363,1775993454138,-2000.0,0.00029537,2]
[420337364,1775993454154,-2000.0,0.00029589,2]
[420337365,1775993454178,-2500.0,0.00029599,5]
[420337366,1775993454197,-16837.22,0.000296,2]
[420337367,1775993454240,-2000.0,0.00029637,2]
[420337368,1775993454254,-1296.18,0.00029697,30]
[420337369,1775993454294,-2000.0,0.00029737,2]
[420337370,1775993454341,-2000.0,0.00029837,2]
[420337371,1775993454432,-150.0,0.00029863,60]
[420337372,1775993454450,-150.0,0.00029863,60]
[420337373,1775993454477,-150.0,0.00029863,60]
[420337374,1775993454513,-500.0,0.00029863,2]
[420337375,1775993454525,-177.19513252,0.00029863,60]
[420337376,1775993454546,-500.0,0.00029863,2]
[420337377,1775993454561,-500.0,0.00029863,2]
[420337378,1775993454574,-500.0,0.00029863,2]
[420337379,1775993454606,-500.0,0.00029863,2]
[420337380,1775993454616,-500.0,0.00029863,2]
[420337381,1775993454646,-500.0,0.00029863,2]
[420337382,1775993454657,-500.0,0.00029863,60]
[420337383,1775993454684,-500.0,0.00029863,60]
[420337384,1775993454695,-500.0,0.00029863,2]
[420337385,1775993454708,-500.0,0.00029863,60]
[420337386,1775993454745,-500.0,0.00029863,60]
[420337387,1775993454757,-500.0,0.00029863,2]
[420337388,1775993454780,-500.0,0.00029863,60]
[420337389,1775993454793,-500.0,0.00029863,2]
[420337390,1775993454807,-500.0,0.00029863,60]
[420337391,1775993454850,-500.0,0.00029863,2]
[420337392,1775993454863,-454.10336627,0.00029863,60]
[420337393,1775993454881,-500.0,0.00029863,2]
[420337394,1775993454892,-500.0,0.00029863,2]
[420337395,1775993454903,-625.44493269,0.00029863,2]
[420337396,1775993454915,-500.0,0.00029863,60]
[420337397,1775993454944,-500.0,0.00029863,60]
[420337398,1775993454954,-500.0,0.00029863,60]
[420337399,1775993454983,-500.0,0.00029863,60]
[420337400,1775993454994,-500.0,0.00029863,60]
[420337401,1775993455009,-500.0,0.00029863,60]
[420337402,1775993455028,-500.0,0.00029863,60]
[420337403,1775993455038,-2000.0,0.00029863,2]
[420337404,1775993455053,-2000.0,0.00029937,2]
[420337405,1775993455071,-239.53869349,0.0002999,2]
[420337406,1775993455081,-18630.5969207,0.0003,2]
[420337407,1775993455096,-20063.64643314,0.0003,2]
[420337408,1775993455124,-1835.70568029,0.0003,2]
[420337409,1775993455135,-322.42217591,0.0003,2]
[420337410,1775993455145,-668.82909364,0.0003,2]
[420337411,1775993455159,-164.62829727,0.0003,2]
[420337412,1775993455175,-150.0,0.0003,2]
[420337413,1775993455186,-1052.35597835,0.0003,2]
[420337414,1775993455196,-719.54,0.0003,2]
[420337415,1775993455210,-3327.05776313,0.0003,10]
[420337416,1775993455222,-582.385937,0.0003,4]
[420337417,1775993455232,-500.0,0.0003,7]
[420337418,1775993455246,-2000.0,0.00030037,2]
[420337419,1775993455259,-150.0,0.00030037,2]
[420337420,1775993455286,-150.0,0.00030037,2]
[420337421,1775993455297,-150.0,0.00030037,2]
[420337422,1775993455319,-150.0,0.00030037,2]
[420337423,1775993455331,-509.0,0.00030074,5]
[420337424,1775993455342,-1084.41936648,0.0003013,2]
[420337425,1775993455361,-13989.62356345,0.0003013,2]
[420337426,1775993455374,-640.47216094,0.0003013,2]
[420337427,1775993455388,-203.7501543,0.0003013,2]
[420337428,1775993455410,-528.80977681,0.0003013,2]
[420337429,1775993455423,-14396.34901988,0.0003013,5]
[420337430,1775993455455,-150.0,0.00030136,2]
[420337431,1775993455469,-2000.0,0.00030137,2]
[420337432,1775993455490,-1000.0,0.00030137,7]
[420337433,1775993455504,-1000.0,0.00030137,7]
[420337434,1775993455517,-658.0,0.00030137,7]
[420337435,1775993455650,-352.5,0.00030137,2]
[420337436,1775993455664,-1500.0,0.00030137,5]
[420337437,1775993455674,-3161.0,0.00030137,120]
[420337438,1775993455685,-253.87349076,0.00030137,120]
[420337439,1775993455704,-998.05,0.00030137,30]
[420337440,1775993455716,-500.0,0.00030137,120]
[420337441,1775993455726,-1000.0,0.00030137,120]
[420337442,1775993455741,-1102.61,0.00030137,120]
[420337443,1775993455771,-200.0,0.00030137,2]
[420337444,1775993455781,-1500.0,0.00030137,15]
[420337445,1775993455799,-1501.717853,0.00030137,15]
[420337446,1775993455811,-200.0,0.00030137,2]
[420337447,1775993455829,-1500.0,0.00030137,15]
[420337448,1775993455842,-1500.0,0.00030137,15]
[420337449,1775993455853,-1500.0,0.00030137,15]
[420337450,1775993455866,-1501.891342,0.00030137,15]
[420337451,1775993455878,-1500.0,0.00030137,15]
[420337452,1775993455890,-1591.018008,0.00030137,15]
[420337453,1775993455899,-200.0,0.00030137,2]
[420337454,1775993455909,-200.0,0.00030137,2]
[420337455,1775993455932,-15690.24127413,0.000302,2]
[420337456,1775993455942,-175.26195521,0.00030275,21]
[420337457,1775993455951,-156.59,0.00030364,30]
[420337458,1775993455961,-16837.22,0.000304,2]
[420337459,1775993455981,-2000.0,0.00030411,7]
[420337460,1775993456003,-2179.35,0.00030413,7]
[420337461,1775993456015,-546.71,0.00030413,7]
[420337462,1775993456047,-812.9,0.0003042,7]
[420337463,1775993456066,-1082.38,0.0003042,7]
[420337464,1775993456083,-200.0,0.00030438,2]
[420337465,1775993456092,-200.0,0.00030438,2]
[420337466,1775993456102,-200.0,0.00030438,2]
[420337467,1775993456125,-200.0,0.00030438,2]
[420337468,1775993456134,-967.6243,0.000305,2]
[420337469,1775993456144,-168.0,0.00030584,120]
[420337470,1775993456158,-152.0,0.0003061,4]
[420337471,1775993456174,-2001.0,0.00030685,7]
[420337472,1775993456184,-200.0,0.00030743,2]
[420337473,1775993456193,-200.0,0.00030743,2]
[420337474,1775993456216,-200.0,0.00030743,2]
[420337475,1775993456225,-200.0,0.00030743,2]
[420337476,1775993456253,-500.0,0.00030822,120]
[420337477,1775993456262,-1625.18837672,0.0003084,2]
[420337478,1775993456272,-1440.2,0.00030915,30]
[420337479,1775993456312,-500.0,0.00030971,120]
[420337480,1775993456322,-1091.45,0.00031,120]
[420337481,1775993456346,-347.29119609,0.00031,5]
[420337482,1775993456357,-150.0,0.00031011,2]
[420337483,1775993456388,-300.0,0.00031029,2]
[420337484,1775993456398,-200.0,0.0003105,2]
[420337485,1775993456414,-200.0,0.0003105,2]
[420337486,1775993456431,-200.0,0.0003105,2]
[420337487,1775993456440,-200.0,0.0003105,2]
[420337488,1775993456449,-3272.59035455,0.000311,120]
[420337489,1775993456459,-2000.0,0.000312,2]
[420337490,1775993456472,-500.0,0.0003125,2]
[420337491,1775993456481,-2111.95,0.00031299,7]
[420337492,1775993456491,-16837.22,0.000313,2]
[420337493,1775993456501,-200.0,0.00031361,2]
[420337494,1775993456518,-200.0,0.00031361,2]
[420337495,1775993456527,-200.0,0.00031361,2]
[420337496,1775993456536,-200.0,0.00031361,2]
[420337497,1775993456546,-404.42676648,0.0003138,2]
[420337498,1775993456555,-210.0,0.00031383,2]
[420337499,1775993456568,-3376.3087434,0.00031468,2]
[420337500,1775993456590,-199.37614324,0.000315,2]
[420337501,1775993456600,-2948.64756456,0.000315,30]
[420337502,1775993456610,-180.92,0.000315,7]
[420337503,1775993456628,-310.02,0.000315,7]
[420337504,1775993456638,-150.0,0.000315,2]
[420337505,1775993456648,-2500.0,0.00031506,5]
[420337506,1775993456657,-624.97788058,0.00031507,5]
[420337507,1775993456685,-509.0,0.00031542,6]
[420337508,1775993456694,-210.21434625,0.00031598,23]
[420337509,1775993456704,-1105.4432,0.000316,2]
[420337510,1775993456730,-1574.0,0.00031632,3]
[420337511,1775993456740,-501.44360909,0.00031661,2]
[420337512,1775993456754,-258.0,0.00031692,2]
[420337513,1775993456776,-924.15066858,0.00031703,120]
[420337514,1775993456788,-5283.0,0.00031703,120]
[420337515,1775993456806,-990.0,0.00031703,120]
[420337516,1775993456826,-1477.79022243,0.00031703,120]
[420337517,1775993456836,-500.0,0.00031726,120]
[420337518,1775993456854,-240.0,0.00031866,21]
[420337519,1775993456870,-924.99,0.000319,7]
[420337520,1775993456899,-2799.9,0.0003194,5]
[420337521,1775993456909,-152.74,0.00031968,2]
[420337522,1775993456928,-152.74,0.00031968,2]
[420337523,1775993456940,-152.74,0.00031968,2]
[420337524,1775993456950,-152.74,0.00031968,2]
[420337525,1775993456976,-152.74,0.00031968,2]
[420337526,1775993456985,-152.74,0.00031968,2]
[420337527,1775993457008,-152.74,0.0003197,2]
[420337528,1775993457031,-152.74,0.0003197,2]
[420337529,1775993457040,-152.74,0.0003197,2]
[420337530,1775993457070,-152.74,0.0003197,2]
[420337531,1775993457081,-152.74,0.0003197,2]
[420337532,1775993457092,-152.74,0.0003197,2]
[420337533,1775993457102,-152.74,0.0003197,2]
[420337534,1775993457113,-152.72,0.00031972,2]
[420337535,1775993457135,-152.74,0.00031972,2]
[420337536,1775993457144,-152.74,0.00031972,2]
[420337537,1775993457153,-152.74,0.00031972,2]
[420337538,1775993457170,-152.74,0.00031972,2]
[420337539,1775993457183,-152.74,0.00031972,2]
[420337540,1775993457192,-152.74,0.00031972,2]
[420337541,1775993457202,-219.06243594,0.0003198,2]
[420337542,1775993457226,-161.0117299,0.00032,2]
[420337543,1775993457238,-352.0,0.00032,120]
[420337544,1775993457267,-600.0,0.00032,120]
[420337545,1775993457277,-160.0,0.00032,120]
[420337546,1775993457295,-160.0,0.00032,30]
[420337547,1775993457309,-291.70695072,0.00032,120]
[420337548,1775993457318,-168.64331703,0.00032,120]
[420337549,1775993457331,-575.08352129,0.00032,120]
[420337550,1775993457360,-830.89191345,0.00032,120]
[420337551,1775993457384,-679.72134112,0.00032,120]
[420337552,1775993457399,-298.44004663,0.00032,120]
[420337553,1775993457408,-248.25672281,0.00032,120]
[420337554,1775993457438,-1153.77340309,0.00032,120]
[420337555,1775993457448,-1928.72883961,0.00032,120]
[420337556,1775993457458,-1205.27061404,0.00032,120]
[420337557,1775993457467,-682.0,0.00032,120]
[420337558,1775993457484,-16837.22,0.000322,2]
[420337559,1775993457501,-4610.72410341,0.0003221,2]
[420337560,1775993457511,-152.0,0.00032233,5]
[420337561,1775993457521,-903.3944452,0.000323,2]
[420337562,1775993457547,-500.0,0.00032329,9]
[420337563,1775993457557,-250.0,0.00032383,24]
[420337564,1775993457566,-500.0,0.00032404,120]
[420337565,1775993457580,-2044.54,0.0003248,7]
[420337566,1775993457599,-500.0,0.00032493,120]
[420337567,1775993457609,-700.0,0.000325,10]
[420337568,1775993457621,-150.0,0.00032562,2]
[420337569,1775993457631,-500.0,0.00032603,9]
[420337570,1775993457643,-2256.77920114,0.00032708,3]
[420337571,1775993457654,-1378.27,0.00032715,2]
[420337572,1775993457671,-156.59,0.00032781,30]
[420337573,1775993457681,-4881.20416472,0.000328,2]
[420337574,1775993457692,-1262.8918,0.000328,2]
[420337575,1775993457713,-154.0,0.00032835,30]
[420337576,1775993457723,-525.0,0.00032835,30]
[420337577,1775993457740,-237.0,0.00032835,30]
[420337578,1775993457749,-476.0,0.00032835,30]
[420337579,1775993457759,-263.0,0.00032835,30]
[420337580,1775993457769,-446.0,0.00032836,30]
[420337581,1775993457783,-637.0,0.00032836,30]
[420337582,1775993457793,-591.0,0.00032836,30]
[420337583,1775993457803,-553.0,0.00032836,30]
[420337584,1775993457813,-158.0,0.00032836,30]
[420337585,1775993457828,-570.0,0.00032854,2]
[420337586,1775993457839,-230.10396202,0.0003287,2]
[420337587,1775993457849,-1741.61230655,0.0003287,4]
[420337588,1775993457862,-153.51,0.00032877,2]
[420337589,1775993457879,-153.69,0.00032877,2]
[420337590,1775993457888,-153.69,0.00032877,2]
[420337591,1775993457898,-153.69,0.00032877,2]
[420337592,1775993457914,-153.69,0.00032877,2]
[420337593,1775993457925,-153.69,0.00032877,2]
[420337594,1775993457936,-153.69,0.00032877,2]
[420337595,1775993457946,-153.69,0.00032877,2]
[420337596,1775993457962,-153.69,0.00032877,2]
[420337597,1775993457972,-153.69,0.00032877,2]
[420337598,1775993457982,-153.69,0.00032877,2]
[420337599,1775993457993,-153.69,0.00032877,2]
[420337600,1775993458002,-153.69,0.00032877,2]
[420337601,1775993458019,-153.69,0.00032877,2]
[420337602,1775993458029,-153.69,0.00032877,2]
[420337603,1775993458043,-153.69,0.00032877,2]
[420337604,1775993458057,-153.69,0.00032877,2]
[420337605,1775993458068,-153.69,0.00032877,2]
[420337606,1775993458086,-153.69,0.00032877,2]
[420337607,1775993458098,-153.69,0.00032877,2]
[420337608,1775993458110,-153.69,0.00032877,2]
[420337609,1775993458129,-153.69,0.00032877,2]
[420337610,1775993458142,-153.69,0.00032877,2]
[420337611,1775993458156,-153.69,0.00032877,2]
[420337612,1775993458173,-153.69,0.00032877,2]
[420337613,1775993458203,-153.69,0.00032877,2]
[420337614,1775993458224,-153.69,0.00032877,2]
[420337615,1775993458234,-153.69,0.00032877,2]
[420337616,1775993458259,-153.69,0.00032877,2]
[420337617,1775993458272,-153.69,0.00032877,2]
[420337618,1775993458660,-153.69,0.00032877,2]
[420337619,1775993458674,-153.69,0.00032877,2]
[420337620,1775993458692,-153.69,0.00032877,2]
[420337621,1775993458715,-153.69,0.00032877,2]
[420337622,1775993458725,-153.69,0.00032877,2]
[420337623,1775993458735,-153.69,0.00032877,2]
[420337624,1775993458758,-153.69,0.00032877,2]
[420337625,1775993458769,-153.69,0.00032877,2]
[420337626,1775993458780,-153.69,0.00032877,2]
[420337627,1775993458813,-500.0,0.00032877,9]
[420337628,1775993458822,-352.5,0.00032877,2]
[420337629,1775993458842,-151.0,0.00032877,7]
[420337630,1775993458877,-151.0,0.00032877,7]
[420337631,1775993458926,-151.0,0.00032877,7]
[420337632,1775993458951,-151.0,0.00032877,7]
[420337633,1775993458994,-500.0,0.00032877,2]
[420337634,1775993459072,-500.0,0.00032877,2]
[420337635,1775993459136,-500.0,0.00032877,2]
[420337636,1775993459153,-500.0,0.00032877,2]
[420337637,1775993459215,-500.0,0.00032877,2]
[420337638,1775993459263,-500.0,0.00032877,5]
[420337639,1775993459306,-500.0,0.00032877,5]
[420337640,1775993459320,-500.0,0.00032877,2]
[420337641,1775993459377,-395.61830498,0.00032877,2]
[420337642,1775993459453,-1000.84746624,0.00033,2]
[420337643,1775993459499,-51850.96958176,0.00033,2]
[420337644,1775993459552,-804.96365984,0.00033,2]
[420337645,1775993459591,-16837.22,0.00033,2]
[420337646,1775993459621,-160.0,0.00033,3]
[420337647,1775993459650,-567.536253,0.00033,14]
[420337648,1775993459678,-291.70695072,0.00033,120]
[420337649,1775993459694,-168.64331703,0.00033,120]
[420337650,1775993459713,-575.08352129,0.00033,120]
[420337651,1775993459758,-830.89191345,0.00033,120]
[420337652,1775993459770,-679.72134112,0.00033,120]
[420337653,1775993459796,-298.44004663,0.00033,120]
[420337654,1775993459806,-248.25672281,0.00033,120]
[420337655,1775993459842,-1153.77340309,0.00033,120]
[420337656,1775993459851,-1928.72883961,0.00033,120]
[420337657,1775993459867,-1205.27061404,0.00033,120]
[420337658,1775993459910,-509.0,0.00033011,8]
[420337659,1775993459921,-250.0,0.00033151,9]
[420337660,1775993459960,-248.36,0.00033425,9]
[420337661,1775993459977,-500.0,0.00033479,120]
[420337662,1775993459990,-1224.83464832,0.000335,2]
[420337663,1775993460024,-285.3754976,0.00033543,2]
[420337664,1775993460035,-162.0,0.00033634,11]
[420337665,1775993460053,-2000.0,0.00033671,5]
[420337666,1775993460072,-1574.0,0.00033784,11]
[420337667,1775993460084,-156.24077515,0.00033835,30]
[420337668,1775993460099,-525.0,0.00033835,30]
[420337669,1775993460114,-237.0,0.00033835,30]
[420337670,1775993460139,-476.0,0.00033835,30]
[420337671,1775993460149,-263.0,0.00033835,30]
[420337672,1775993460159,-446.0,0.00033836,30]
[420337673,1775993460177,-637.0,0.00033836,30]
[420337674,1775993460187,-591.0,0.00033836,30]
[420337675,1775993460200,-553.0,0.00033836,30]
[420337676,1775993460216,-158.0,0.00033836,30]
[420337677,1775993460226,-500.0,0.00033837,120]
[420337678,1775993460236,-152.0,0.00033856,6]
[420337679,1775993460255,-291.70695072,0.000339,120]
[420337680,1775993460266,-168.64331703,0.000339,120]
[420337681,1775993460278,-575.08352129,0.000339,120]
[420337682,1775993460299,-830.89191345,0.000339,120]
[420337683,1775993460309,-679.72134112,0.000339,120]
[420337684,1775993460324,-298.44004663,0.000339,120]
[420337685,1775993460335,-248.25672281,0.000339,120]
[420337686,1775993460345,-1153.77340309,0.000339,120]
[420337687,1775993460357,-1928.72883961,0.000339,120]
[420337688,1775993460373,-1205.27061404,0.000339,120]
[420337689,1775993460383,-1977.14,0.00033957,30]
[420337690,1775993460393,-1000.0,0.00033973,5]
[420337691,1775993460420,-16837.22,0.00034,2]
[420337692,1775993460430,-1442.7657,0.00034,2]
[420337693,1775993460442,-155.54311712,0.00034073,2]
[420337694,1775993460454,-2056.03,0.000341,120]
[420337695,1775993460467,-1510.85,0.000341,120]
[420337696,1775993460479,-551.13,0.000341,120]
[420337697,1775993460489,-150.0,0.0003419,2]
[420337698,1775993460502,-150.0,0.00034241,2]